fUST/lending_fUST_20250626
["ID","MTS","AMOUNT","RATE_DAILY","PERIOD"]
[367623783,1750879849489,-151.0,0.000192,2]
[367623785,1750879849498,-160.0,0.0001925,3]
[367623787,1750879849508,-2500.0,0.00019295,2]
[367623789,1750879849517,-2500.0,0.00019299,2]
[367623791,1750879849527,-151.0,0.000193,2]
[367623793,1750879849537,-151.0,0.00019307,3]
[367623795,1750879849547,-151.0,0.00019329,2]
[367623797,1750879849557,-168.978335,0.00019329,2]
[367623799,1750879849567,-151.0,0.00019329,2]
[367623801,1750879849576,-151.0,0.00019329,2]
[367623803,1750879849586,-261.080728,0.00019329,2]
[367623805,1750879849596,-252.125982,0.00019329,2]
[367623807,1750879849606,-252.125982,0.00019329,2]
[367623809,1750879849616,-32511.63094476,0.00019329,2]
[367623811,1750879849626,-151.0,0.00019343,2]
[367623813,1750879849635,-151.0,0.00019343,2]
[367623815,1750879849648,-151.0,0.00019343,2]
[367623817,1750879849658,-151.0,0.00019343,2]
[367623819,1750879849669,-1185.0,0.00019345,2]
[367623821,1750879849678,-151.0,0.00019348,2]
[367623823,1750879849689,-151.0,0.00019348,2]
[367623826,1750879849700,-3218.82112114,0.00019383,2]
[367623827,1750879849710,-427.97531675,0.000194,2]
[367623830,1750879849721,-200.0,0.000194,3]
[367623831,1750879849732,-3000.0,0.000194,2]
[367623834,1750879849742,-151.0,0.000194,2]
[367623836,1750879849753,-151.0,0.000194,2]
[367623838,1750879849762,-3000.0,0.0001941,2]
[367623840,1750879849771,-3000.0,0.0001942,2]
[367623841,1750879849780,-3000.0,0.0001943,2]
[367623843,1750879849789,-3000.0,0.0001944,2]
[367623845,1750879849798,-151.0,0.0001944,2]
[367623847,1750879849807,-212.568948,0.0001944,2]
[367623849,1750879849817,-269.740385,0.0001944,2]
[367623852,1750879849827,-196.042969,0.0001944,2]
[367623853,1750879849837,-196.042969,0.0001944,2]
[367623854,1750879849847,-3000.0,0.0001945,2]
[367623855,1750879849856,-151.0,0.00019452,2]
[367623856,1750879849865,-151.0,0.00019452,2]
[367623857,1750879849874,-151.0,0.00019452,2]
[367623858,1750879849883,-151.0,0.00019452,2]
[367623859,1750879849893,-282.777741,0.00019452,2]
[367623860,1750879849902,-282.777741,0.00019452,2]
[367623861,1750879849911,-151.0,0.00019452,2]
[367623862,1750879849921,-151.0,0.00019452,2]
[367623863,1750879849930,-460.0,0.00019452,2]
[367623864,1750879849939,-264.62903695,0.00019452,2]
[367623865,1750879849949,-460.0,0.00019452,2]
[367623866,1750879849958,-460.0,0.00019452,2]
[367623867,1750879849968,-460.0,0.00019452,2]
[367623868,1750879849977,-570.09,0.00019452,2]
[367623869,1750879849986,-460.0,0.00019452,2]
[367623870,1750879849996,-844.63,0.00019452,2]
[367623871,1750879850005,-460.0,0.00019452,2]
[367623872,1750879850015,-1854.08,0.00019452,2]
[367623873,1750879850025,-3439.32,0.00019452,2]
[367623874,1750879850034,-460.0,0.00019452,2]
[367623876,1750879850044,-1368.35,0.00019452,2]
[367623878,1750879850053,-1889.98,0.00019452,2]
[367623880,1750879850063,-485.01,0.00019452,2]
[367623881,1750879850072,-460.0,0.00019452,2]
[367623884,1750879850082,-764.44,0.00019452,2]
[367623886,1750879850091,-460.0,0.00019452,2]
[367623888,1750879850100,-460.0,0.00019452,2]
[367623890,1750879850109,-817.46,0.00019452,2]
[367623892,1750879850121,-460.0,0.00019452,2]
[367623894,1750879850131,-1687.21,0.00019452,2]
[367623896,1750879850141,-3328.99,0.00019452,2]
[367623898,1750879850150,-521.37,0.00019452,2]
[367623900,1750879850159,-1003.52,0.00019452,2]
[367623902,1750879850168,-460.0,0.00019452,2]
[367623904,1750879850177,-2727.71,0.00019452,2]
[367623906,1750879850186,-1100.65043044,0.00019452,2]
[367623921,1750879850321,-460.0,0.00016438,2]
[367623923,1750879850331,-460.0,0.00016712,2]
[367623925,1750879850340,-585.29150447,0.00016985,2]
[367623927,1750879850350,-460.0,0.00016986,2]
[367623929,1750879850359,-425.00956956,0.00019452,2]
[367623931,1750879850369,-501.38,0.00019452,2]
[367623933,1750879850378,-1919.22,0.00019452,2]
[367623935,1750879850387,-460.0,0.00019452,2]
[367623937,1750879850397,-460.0,0.00019452,2]
[367623939,1750879850405,-460.0,0.00019452,2]
[367623941,1750879850414,-460.0,0.00019452,2]
[367623943,1750879850423,-532.35,0.00019452,2]
[367623945,1750879850432,-845.12,0.00019452,2]
[367623947,1750879850441,-690.86,0.00019452,2]
[367623949,1750879850450,-460.2,0.00019452,2]
[367623951,1750879850459,-460.0,0.00019452,2]
[367623953,1750879850468,-986.65905051,0.00019452,2]
[367623958,1750879850508,-460.0,0.00016438,2]
[367623960,1750879850516,-500.0,0.00016985,2]
[367623962,1750879850525,-500.0,0.00016985,2]
[367623964,1750879850535,-171.09094949,0.00019452,2]
[367623966,1750879850544,-1708.35827263,0.00019452,2]
[367623968,1750879850555,-124.66172737,0.00019452,2]
[367623970,1750879850565,-560.09,0.00019452,2]
[367623972,1750879850574,-477.12529715,0.00019452,2]
[367623974,1750879850586,-670.79689604,0.00019452,2]
[367623976,1750879850596,-850.07780681,0.00019452,2]
[367623978,1750879850606,-460.0,0.00019452,2]
[367623980,1750879850615,-671.46,0.00019452,2]
[367623982,1750879850624,-591.36,0.00019452,2]
[367623984,1750879850634,-1490.15,0.00019452,2]
[367623985,1750879850644,-676.72793694,0.00019452,2]
[367625405,1750879929552,9397.80383448,0.00015437,2]
[367625406,1750879929575,15502.19616552,0.00015437,2]
[367625408,1750880016344,354.264187,0.00013699,2]
[367625410,1750880237316,210.9270874,0.00015507,2]
[367625411,1750880303897,3932.61256008,0.000161,2]
[367625412,1750880304089,1067.38743992,0.000161,2]
[367625413,1750880319555,157.43,0.000161,2]
[367625414,1750880324762,163.8222036,0.00015554,2]
[367625415,1750880548250,546.158269,0.00015438,2]
[367625419,1750880632495,3105.8092541,0.00015438,2]
[367625420,1750880657436,5000.0,0.000161,2]
[367625421,1750880672538,5000.0,0.000161,2]
[367625422,1750880691804,4959.39283338,0.000161,2]
[367625423,1750880691825,40.60716662,0.000161,2]
[367625424,1750880707121,5000.0,0.000161,2]
[367625425,1750880722821,5000.0,0.000161,2]
[367625426,1750880728409,418.28657077,0.00015945,2]
[367625427,1750880738825,5000.0,0.000161,2]
[367625428,1750880753982,4541.10626261,0.000161,2]
[367625429,1750880754005,458.89373739,0.000161,2]
[367625430,1750880769347,5000.0,0.000161,2]
[367625431,1750880784374,5000.0,0.000161,2]
[367625432,1750880800251,5000.0,0.000161,2]
[367625433,1750880815638,4541.10626261,0.000161,2]
[367625434,1750880815661,458.89373739,0.000161,2]
[367625435,1750880830533,5000.0,0.000161,2]
[367625436,1750880845584,5000.0,0.000161,2]
[367625437,1750880860405,1717.59332984,0.000161,2]
[367625438,1750880868472,186.72856847,0.000161,2]
[367625439,1750880892844,5000.0,0.000161,2]
[367625443,1750880906709,230.7056278,0.00015554,2]
[367625444,1750880909080,195.8705281,0.00016109,2]
[367625445,1750880910363,-304.1294719,0.00016109,2]
[367625446,1750880912807,-313.10872487,0.00016109,2]
[367625455,1750880999476,707.82991,0.00016108,2]
[367625459,1750881029678,355.371428,0.00015945,2]
[367625460,1750881030628,3030.798662,0.00015554,2]
[367625461,1750881030651,2406.0787365,0.00015554,2]
[367625462,1750881030674,19463.1226015,0.00015554,2]
[367625631,1750881035763,404.24548,0.00013699,2]
[367625685,1750881038491,-4186.89127513,0.00016109,2]
[367625686,1750881038502,-599.99642315,0.00016437,2]
[367625687,1750881038511,-516.23188827,0.00016437,2]
[367625688,1750881038521,-500.0,0.00016437,2]
[367625689,1750881038531,-633.03132307,0.00016437,2]
[367625690,1750881038540,-500.0,0.00016437,2]
[367625691,1750881038550,-500.0,0.00016437,2]
[367625692,1750881038559,-527.13145539,0.00016437,2]
[367625693,1750881038570,-500.0,0.00016437,2]
[367625694,1750881038580,-500.0,0.00016437,2]
[367625695,1750881038590,-500.0,0.00016437,2]
[367625696,1750881038600,-615.97847795,0.00016437,2]
[367625697,1750881038609,-500.0,0.00016437,2]
[367625698,1750881038619,-500.0,0.00016437,2]
[367625699,1750881038629,-156.61554626,0.00016437,2]
[367625700,1750881038638,-500.0,0.00016437,2]
[367625701,1750881038647,-156.61554626,0.00016437,2]
[367625702,1750881038657,-460.0,0.00016438,2]
[367625703,1750881038666,-460.0,0.00016438,2]
[367625704,1750881038675,-460.0,0.00016438,2]
[367625705,1750881038685,-460.0,0.00016438,2]
[367625706,1750881038694,-460.0,0.00016438,2]
[367625707,1750881038703,-586.65065778,0.00016438,2]
[367625708,1750881038712,-572.14767029,0.00016438,2]
[367625709,1750881038722,-460.0,0.00016438,2]
[367625710,1750881038732,-460.0,0.00016438,2]
[367625711,1750881038743,-460.0,0.00016438,2]
[367625712,1750881038755,-460.0,0.00016438,2]
[367625713,1750881038764,-460.0,0.00016438,2]
[367625714,1750881038773,-460.0,0.00016438,2]
[367625715,1750881038782,-460.0,0.00016438,2]
[367625716,1750881038791,-433.38116228,0.00016438,2]
[367625717,1750881038800,-460.0,0.00016438,2]
[367625718,1750881038809,-267.96207288,0.00016438,2]
[367625719,1750881038825,-62.40713497,0.00016438,2]
[367625720,1750881038835,-460.0,0.00016438,2]
[367625721,1750881038845,-460.0,0.00016438,2]
[367625722,1750881038856,-460.0,0.00016438,2]
[367625723,1750881038866,-460.0,0.00016438,2]
[367625724,1750881038875,-460.0,0.00016438,2]
[367625725,1750881038885,-460.0,0.00016438,2]
[367625726,1750881038894,-460.0,0.00016438,2]
[367625727,1750881038904,-460.0,0.00016438,2]
[367625728,1750881038913,-460.0,0.00016438,2]
[367625729,1750881038922,-460.0,0.00016438,2]
[367625730,1750881038932,-460.0,0.00016438,2]
[367625731,1750881038941,-460.0,0.00016438,2]
[367625732,1750881038951,-460.0,0.00016438,2]
[367625733,1750881038960,-460.0,0.00016438,2]
[367625734,1750881038969,-460.0,0.00016438,2]
[367625735,1750881038979,-463.16654347,0.00016438,2]
[367625736,1750881038988,-466.95855286,0.00016438,2]
[367625737,1750881038997,-277.56638649,0.00016438,2]
[367625738,1750881039007,-470.47620439,0.00016438,2]
[367625739,1750881039016,-436.69743649,0.00016438,2]
[367625740,1750881039026,-172.75183776,0.00016438,2]
[367625741,1750881039035,-461.85547651,0.00016438,2]
[367625742,1750881039044,-436.4999999,0.00016438,2]
[367625743,1750881039055,-460.0,0.00016438,2]
[367625744,1750881039064,-460.0,0.00016438,2]
[367625745,1750881039074,-460.0,0.00016438,2]
[367625746,1750881039083,-460.0,0.00016438,2]
[367625747,1750881039093,-460.0,0.00016438,2]
[367625748,1750881039102,-460.0,0.00016438,2]
[367625749,1750881039112,-428.21,0.00016438,2]
[367625750,1750881039127,-460.0,0.00016438,2]
[367625751,1750881039137,-460.0,0.00016438,2]
[367625752,1750881039146,-460.0,0.00016438,2]
[367625753,1750881039156,-481.31643801,0.00016438,2]
[367625754,1750881039165,-460.0,0.00016438,2]
[367625755,1750881039174,-535.4572313,0.00016438,2]
[367625756,1750881039184,-460.0,0.00016438,2]
[367625757,1750881039193,-383.54,0.00016438,2]
[367625758,1750881039203,-462.86500861,0.00016438,2]
[367625759,1750881039212,-460.0,0.00016438,2]
[367625760,1750881039222,-460.0,0.00016438,2]
[367625761,1750881039233,-460.0,0.00016438,2]
[367625762,1750881039245,-460.0,0.00016438,2]
[367625763,1750881039254,-460.0,0.00016438,2]
[367625764,1750881039264,-495.52,0.00016438,2]
[367625765,1750881039276,-460.0,0.00016438,2]
[367625766,1750881039285,-460.0,0.00016438,2]
[367625767,1750881039295,-414.44234438,0.00016438,2]
[367625768,1750881039306,-460.0,0.00016438,2]
[367625769,1750881039316,-460.0,0.00016438,2]
[367625770,1750881039326,-500.0,0.00016438,2]
[367625771,1750881039335,-460.0,0.00016438,2]
[367625772,1750881039345,-460.0,0.00016438,2]
[367625773,1750881039354,-460.0,0.00016438,2]
[367625774,1750881039574,-460.0,0.00016438,2]
[367625775,1750881039584,-460.0,0.00016438,2]
[367625776,1750881039593,-294.83182357,0.00016438,2]
[367625777,1750881039602,-460.0,0.00016438,2]
[367625778,1750881039611,-460.0,0.00016438,2]
[367625779,1750881039621,-460.0,0.00016438,2]
[367625780,1750881039630,-420.0,0.00016438,2]
[367625781,1750881039639,-460.0,0.00016438,2]
[367625782,1750881039648,-460.0,0.00016438,2]
[367625783,1750881039657,-460.0,0.00016438,2]
[367625784,1750881039666,-460.0,0.00016438,2]
[367625785,1750881039675,-460.0,0.00016438,2]
[367625786,1750881039685,-460.0,0.00016438,2]
[367625787,1750881039694,-460.0,0.00016438,2]
[367625788,1750881039703,-460.0,0.00016438,2]
[367625789,1750881039712,-460.0,0.00016438,2]
[367625790,1750881039721,-460.0,0.00016438,2]
[367625791,1750881039731,-430.0,0.00016438,2]
[367625792,1750881039740,-460.0,0.00016438,2]
[367625793,1750881039749,-460.0,0.00016438,2]
[367625794,1750881039758,-403.38540751,0.00016438,2]
[367625795,1750881039766,-460.0,0.00016438,2]
[367625796,1750881039776,-460.0,0.00016438,2]
[367625797,1750881039785,-460.0,0.00016438,2]
[367625798,1750881039794,-460.0,0.00016438,2]
[367625799,1750881039803,-460.0,0.00016438,2]
[367625800,1750881039812,-460.0,0.00016438,2]
[367625801,1750881039821,-460.0,0.00016438,2]
[367625802,1750881039830,-460.0,0.00016438,2]
[367625803,1750881039839,-460.0,0.00016438,2]
[367625804,1750881039848,-460.0,0.00016438,2]
[367625805,1750881039857,-460.0,0.00016438,2]
[367625806,1750881039867,-460.0,0.00016438,2]
[367625807,1750881039876,-500.0,0.00016438,2]
[367625808,1750881039887,-500.0,0.00016438,2]
[367625809,1750881039896,-500.0,0.00016438,2]
[367625810,1750881039906,-500.0,0.00016438,2]
[367625811,1750881039915,-420.0,0.00016438,2]
[367625812,1750881039923,-460.0,0.00016438,2]
[367625813,1750881039932,-460.0,0.00016438,2]
[367625814,1750881039942,-460.0,0.00016438,2]
[367625815,1750881039951,-500.0,0.00016438,2]
[367625816,1750881039960,-500.0,0.00016438,2]
[367625817,1750881039969,-423.51307967,0.00016438,2]
[367625818,1750881039978,-364.78383402,0.00016438,2]
[367625819,1750881039987,-460.0,0.00016438,2]
[367625820,1750881039996,-460.0,0.00016438,2]
[367625821,1750881040005,-460.0,0.00016438,2]
[367625822,1750881040014,-460.0,0.00016438,2]
[367625823,1750881040023,-460.0,0.00016438,2]
[367625824,1750881040032,-460.0,0.00016438,2]
[367625825,1750881040041,-460.0,0.00016438,2]
[367625826,1750881040050,-460.0,0.00016438,2]
[367625827,1750881040059,-460.0,0.00016438,2]
[367625828,1750881040068,-373.60968768,0.00016438,2]
[367625829,1750881040077,-460.0,0.00016438,2]
[367625830,1750881040085,-460.0,0.00016438,2]
[367625831,1750881040094,-462.76981906,0.00016438,2]
[367625832,1750881040112,-460.0,0.00016438,2]
[367625833,1750881040123,-460.0,0.00016438,2]
[367625834,1750881040134,-460.0,0.00016438,2]
[367625835,1750881040144,-430.0,0.00016438,2]
[367625836,1750881040155,-460.0,0.00016438,2]
[367625837,1750881040165,-460.0,0.00016438,2]
[367625838,1750881040175,-460.0,0.00016438,2]
[367625839,1750881040185,-460.0,0.00016438,2]
[367625840,1750881040195,-460.0,0.00016438,2]
[367625841,1750881040205,-460.0,0.00016438,2]
[367625842,1750881040215,-460.0,0.00016438,2]
[367625843,1750881040224,-440.0,0.00016438,2]
[367625844,1750881040236,-460.0,0.00016438,2]
[367625845,1750881040247,-433.33626648,0.00016438,2]
[367625847,1750881040256,-460.0,0.00016438,2]
[367625848,1750881040266,-460.0,0.00016438,2]
[367625849,1750881040275,-460.0,0.00016438,2]
[367625851,1750881040285,-463.06845922,0.00016438,2]
[367625853,1750881040294,-460.0,0.00016438,2]
[367625856,1750881040304,-460.0,0.00016438,2]
[367625858,1750881040314,-410.13385102,0.00016438,2]
[367625860,1750881040324,-460.0,0.00016438,2]
[367625862,1750881040334,-460.0,0.00016438,2]
[367625864,1750881040343,-460.0,0.00016438,2]
[367625866,1750881040353,-460.0,0.00016438,2]
[367625868,1750881040362,-460.0,0.00016438,2]
[367625870,1750881040371,-460.0,0.00016438,2]
[367625872,1750881040382,-1048.64,0.00016438,2]
[367625874,1750881040391,-460.0,0.00016438,2]
[367625876,1750881040401,-460.0,0.00016438,2]
[367625878,1750881040410,-460.0,0.00016438,2]
[367625880,1750881040419,-460.0,0.00016438,2]
[367625882,1750881040429,-460.0,0.00016438,2]
[367625884,1750881040438,-460.0,0.00016438,2]
[367625886,1750881040447,-460.0,0.00016438,2]
[367625888,1750881040457,-460.0,0.00016438,2]
[367625890,1750881040466,-460.0,0.00016438,2]
[367625892,1750881040476,-1558.71,0.00016438,2]
[367625894,1750881040485,-460.0,0.00016438,2]
[367625896,1750881040495,-460.0,0.00016438,2]
[367625898,1750881040505,-460.0,0.00016438,2]
[367625900,1750881040515,-460.0,0.00016438,2]
[367625902,1750881040524,-460.0,0.00016438,2]
[367625905,1750881040534,-459.90303418,0.00016438,2]
[367625906,1750881040543,-460.0,0.00016438,2]
[367625909,1750881040553,-460.0,0.00016438,2]
[367625911,1750881040562,-608.37159644,0.00016438,2]
[367625913,1750881040572,-460.0,0.00016438,2]
[367625915,1750881040581,-460.0,0.00016438,2]
[367625917,1750881040593,-460.0,0.00016438,2]
[367625919,1750881040602,-460.0,0.00016438,2]
[367625921,1750881040612,-460.0,0.00016438,2]
[367625923,1750881040621,-460.0,0.00016438,2]
[367625925,1750881040630,-460.0,0.00016438,2]
[367625927,1750881040639,-460.0,0.00016438,2]
[367625929,1750881040649,-328.08587698,0.00016438,2]
[367625931,1750881040658,-460.0,0.00016438,2]
[367625933,1750881040668,-460.0,0.00016438,2]
[367625935,1750881040679,-460.0,0.00016438,2]
[367625937,1750881040689,-460.0,0.00016438,2]
[367625939,1750881040698,-460.0,0.00016438,2]
[367625941,1750881040707,-460.0,0.00016438,2]
[367625943,1750881040717,-460.0,0.00016438,2]
[367625945,1750881040726,-460.0,0.00016438,2]
[367625947,1750881040735,-460.0,0.00016438,2]
[367625949,1750881040745,-460.0,0.00016438,2]
[367625951,1750881040754,-460.0,0.00016438,2]
[367625953,1750881040764,-1371.04,0.00016438,2]
[367625955,1750881040773,-460.0,0.00016438,2]
[367625957,1750881040783,-460.0,0.00016438,2]
[367625959,1750881040792,-460.0,0.00016438,2]
[367625961,1750881040802,-1403.03,0.00016438,2]
[367625963,1750881040811,-1137.36,0.00016438,2]
[367625965,1750881040820,-285.18186634,0.00016438,2]
[367625967,1750881040829,-460.0,0.00016438,2]
[367625969,1750881040838,-460.0,0.00016438,2]
[367625971,1750881040848,-460.0,0.00016438,2]
[367625973,1750881040857,-460.0,0.00016438,2]
[367625975,1750881040866,-460.0,0.00016438,2]
[367625977,1750881040876,-460.0,0.00016438,2]
[367625979,1750881040887,-460.0,0.00016438,2]
[367625981,1750881040897,-460.0,0.00016438,2]
[367625983,1750881040907,-460.0,0.00016438,2]
[367625985,1750881040917,-460.0,0.00016438,2]
[367625987,1750881040926,-460.0,0.00016438,2]
[367625990,1750881040935,-690.47,0.00016438,2]
[367625992,1750881040945,-460.0,0.00016438,2]
[367625994,1750881040955,-460.0,0.00016438,2]
[367625996,1750881040964,-460.0,0.00016438,2]
[367625998,1750881040973,-460.0,0.00016438,2]
[367626000,1750881040982,-460.0,0.00016438,2]
[367626002,1750881040991,-460.0,0.00016438,2]
[367626004,1750881041001,-460.0,0.00016438,2]
[367626006,1750881041011,-712.72,0.00016438,2]
[367626008,1750881041020,-1179.7,0.00016438,2]
[367626010,1750881041029,-460.0,0.00016438,2]
[367626012,1750881041038,-460.0,0.00016438,2]
[367626014,1750881041047,-460.0,0.00016438,2]
[367626016,1750881041058,-460.0,0.00016438,2]
[367626018,1750881041068,-460.0,0.00016438,2]
[367626020,1750881041077,-460.0,0.00016438,2]
[367626022,1750881041086,-1199.51,0.00016438,2]
[367626024,1750881041096,-460.0,0.00016438,2]
[367626026,1750881041105,-2780.32,0.00016438,2]
[367626028,1750881041115,-185.82432596,0.00016438,2]
[367626046,1750881041280,-274.17567404,0.00016438,2]
[367626048,1750881041291,-460.0,0.00016438,2]
[367626050,1750881041300,-2329.28,0.00016438,2]
[367626053,1750881041311,-1923.99,0.00016438,2]
[367626055,1750881041323,-460.0,0.00016438,2]
[367626057,1750881041333,-460.0,0.00016438,2]
[367626059,1750881041342,-460.0,0.00016438,2]
[367626061,1750881041351,-463.21839158,0.00016438,2]
[367626062,1750881041360,-460.0,0.00016438,2]
[367626064,1750881041369,-460.0,0.00016438,2]
[367626065,1750881041378,-460.0,0.00016438,2]
[367626067,1750881041388,-460.0,0.00016438,2]
[367626069,1750881041397,-460.0,0.00016438,2]
[367626071,1750881041406,-529.22,0.00016438,2]
[367626072,1750881041415,-460.0,0.00016438,2]
[367626074,1750881041425,-460.0,0.00016438,2]
[367626076,1750881041435,-460.0,0.00016438,2]
[367626077,1750881041443,-460.0,0.00016438,2]
[367626079,1750881041452,-460.0,0.00016438,2]
[367626080,1750881041462,-548.48,0.00016438,2]
[367626082,1750881041472,-460.0,0.00016438,2]
[367626084,1750881041481,-670.7,0.00016438,2]
[367626086,1750881041490,-460.0,0.00016438,2]
[367626087,1750881041499,-460.0,0.00016438,2]
[367626089,1750881041508,-460.0,0.00016438,2]
[367626091,1750881041517,-460.0,0.00016438,2]
[367626092,1750881041526,-882.97,0.00016438,2]
[367626094,1750881041535,-460.0,0.00016438,2]
[367626096,1750881041546,-460.0,0.00016438,2]
[367626097,1750881041555,-460.0,0.00016438,2]
[367626099,1750881041565,-347.59285744,0.00016438,2]
[367626101,1750881041575,-460.0,0.00016438,2]
[367626103,1750881041584,-460.0,0.00016438,2]
[367626104,1750881041594,-460.0,0.00016438,2]
[367626106,1750881041603,-460.0,0.00016438,2]
[367626107,1750881041612,-503.27822163,0.00016438,2]
[367626109,1750881041621,-625.31,0.00016438,2]
[367626111,1750881041632,-460.0,0.00016438,2]
[367626113,1750881041641,-460.0,0.00016438,2]
[367626114,1750881041650,-460.0,0.00016438,2]
[367626116,1750881041659,-460.0,0.00016438,2]
[367626118,1750881041668,-460.0,0.00016438,2]
[367626119,1750881041678,-1145.64,0.00016438,2]
[367626121,1750881041687,-460.0,0.00016438,2]
[367626123,1750881041696,-460.0,0.00016438,2]
[367626125,1750881041705,-460.0,0.00016438,2]
[367626127,1750881041715,-523.07,0.00016438,2]
[367626128,1750881041723,-460.0,0.00016438,2]
[367626130,1750881041732,-460.0,0.00016438,2]
[367626131,1750881041741,-460.0,0.00016438,2]
[367626133,1750881041751,-460.0,0.00016438,2]
[367626135,1750881041761,-460.0,0.00016438,2]
[367626137,1750881041770,-460.0,0.00016438,2]
[367626139,1750881041779,-1537.77,0.00016438,2]
[367626140,1750881041789,-460.0,0.00016438,2]
[367626142,1750881041798,-460.0,0.00016438,2]
[367626144,1750881041807,-686.58,0.00016438,2]
[367626146,1750881041816,-460.0,0.00016438,2]
[367626148,1750881041825,-410.64371156,0.00016438,2]
[367626149,1750881041835,-460.0,0.00016438,2]
[367626151,1750881041845,-460.0,0.00016438,2]
[367626153,1750881041854,-460.0,0.00016438,2]
[367626155,1750881041864,-339.72027941,0.00016438,2]
[367626156,1750881041873,-1094.49,0.00016438,2]
[367626158,1750881041883,-460.0,0.00016438,2]
[367626160,1750881041891,-460.0,0.00016438,2]
[367626161,1750881041901,-422.79946169,0.00016438,2]
[367626163,1750881041910,-460.0,0.00016438,2]
[367626165,1750881041920,-460.0,0.00016438,2]
[367626167,1750881041929,-460.0,0.00016438,2]
[367626169,1750881041938,-460.0,0.00016438,2]
[367626170,1750881041947,-597.38,0.00016438,2]
[367626172,1750881041956,-460.0,0.00016438,2]
[367626174,1750881041965,-460.0,0.00016438,2]
[367626176,1750881041974,-460.0,0.00016438,2]
[367626178,1750881041983,-460.0,0.00016438,2]
[367626179,1750881041992,-460.0,0.00016438,2]
[367626181,1750881042002,-460.0,0.00016438,2]
[367626183,1750881042011,-460.0,0.00016438,2]
[367626185,1750881042020,-460.0,0.00016438,2]
[367626186,1750881042029,-460.0,0.00016438,2]
[367626188,1750881042038,-460.0,0.00016438,2]
[367626190,1750881042047,-460.0,0.00016438,2]
[367626192,1750881042056,-460.0,0.00016438,2]
[367626194,1750881042066,-460.0,0.00016438,2]
[367626195,1750881042075,-460.0,0.00016438,2]
[367626197,1750881042084,-460.0,0.00016438,2]
[367626199,1750881042093,-460.0,0.00016438,2]
[367626201,1750881042103,-460.0,0.00016438,2]
[367626203,1750881042112,-460.0,0.00016438,2]
[367626204,1750881042121,-503.77,0.00016438,2]
[367626206,1750881042131,-460.0,0.00016438,2]
[367626208,1750881042141,-460.0,0.00016438,2]
[367626210,1750881042150,-491.03676348,0.00016438,2]
[367626212,1750881042159,-460.0,0.00016438,2]
[367626213,1750881042169,-464.66827969,0.00016438,2]
[367626215,1750881042178,-460.0,0.00016438,2]
[367626217,1750881042188,-427.558322,0.00016438,2]
[367626219,1750881042197,-666.0,0.00016438,2]
[367626221,1750881042206,-151.0,0.00016657,2]
[367626222,1750881042216,-151.3624503,0.00016657,2]
[367626224,1750881042225,-500.0,0.00016657,2]
[367626226,1750881042236,-151.0,0.00016657,2]